Cogmind - Beta 10.1 @@@ ROGUE MODE // 2020.09.20 @ 20:10:31 Player: Ghost73 Result: Destroyed by S-10 Pest with Light Assault Rifle Performance ------------- Evolutions (0) 0 Regions Visited (1) 200 Robots Destroyed (12) 60 Value Destroyed (290) 290 Prototype IDs (2) 40 Alien Tech Used (0) 0 Bonus (0) 0 TOTAL SCORE: 590 Bonus ------- None Cogmind --------- Core Integrity 0/250 Matter 264/300 Energy 76/100 System Corruption 0% Temperature Cool (0) Movement Core (350) Ox6 Location -10/Materials Parts ------- > --- POWER (1) -------- (None) > --- PROPULSION (2) --- (None) > --- UTILITY (2) ------ Large Storage Unit Weapon Shielding > --- WEAPON (2) ------- EM Pulse Gun Hammer > --- INVENTORY (10) --- Compact Wheel Improved Heat Sink Small Storage Unit High-capacity Battery (400) Signal Interpreter Terrain Scan Processor Targeting Computer Weapon Shielding Tractor Beam Peak State ------------ > --- POWER ------------ Light Nuclear Core > --- PROPULSION ------- Aluminum Leg Aluminum Leg > --- UTILITY ---------- Improved Heat Sink Large Storage Unit > --- WEAPON ----------- Grenade Launcher > --- INVENTORY -------- Small Storage Unit High-capacity Battery Terrain Scan Processor Weapon Shielding Weapon Shielding [Rating: 10] Favorites ----------- Power Light Nuclear Core Engine Light Ion Engine Power Core Light Nuclear Core Propulsion Aluminum Leg Leg Aluminum Leg Wheel Wheel Utility Weapon Shielding Device Improved Heat Sink Storage Large Storage Unit Processor Salvage Targeting Computer Protection Weapon Shielding Weapon EM Pulse Gun Energy Gun EM Pulse Gun Launcher Grenade Launcher Impact Weapon Hammer Build | -11 -10 ------- Run | Scr Mat Slots Evolved . | . . Power . | . . Propulsion . | . . Utility . | . . Weapon . | . . Parts Attached 19 | 6 13 Power 2 | 1 1 Engine 1 | 1 . Core 1 | . 1 Reactor . | . . Propulsion 4 | 2 2 Treads . | . . Leg 2 | . 2 Wheel 2 | 2 . Hover . | . . Flight . | . . Utility 7 | . 7 Device 1 | . 1 Storage 2 | . 2 Processor 2 | . 2 Hackware . | . . Protection 2 | . 2 Artifact . | . . Weapon 6 | 3 3 Energy Gun 4 | 3 1 Energy Cannon . | . . Ballistic Gun . | . . Ballistic Cannon . | . . Launcher 1 | . 1 Special Weapon . | . . Impact Weapon 1 | . 1 Slashing Weapon . | . . Piercing Weapon . | . . Special Melee Weapon . | . . Unidentified Prototypes . | . . Parts Lost 7 | . 7 Power 2 | . 2 Propulsion 3 | . 3 Utility . | . . Weapon 2 | . 2 Highest Loss Streak 3 | . 3 Average Slot Usage (%) 89 | . 89 Engine 4 | . 4 Core 8 | . 8 Leg 19 | . 19 Wheel 6 | . 6 Device 2 | . 2 Storage 10 | . 10 Processor 2 | . 2 Protection 11 | . 11 Energy Gun 10 | . 10 Launcher 8 | . 8 Impact Weapon 4 | . 4 Naked Turns . | . . Heaviest Build 27 | 7 27 Greatest Support 20 | 20 20 Greatest Overweight (x) 2 | . 2 Average Overweight (x) . | . . Largest Inventory Capacity 10 | 4 10 Average Capacity 7 | 4 8 Most Carried 10 | 3 10 Average Carried 5 | 1 6 Final Capacity 10 | 4 10 Final Carried 9 | 1 9 Class Distribution -------------------- 83% | Mutant 16% | Scavenger-Mutant Dominant Class ---------------- Mutant | -10/Materials Resources | -11 -10 ----------- Run | Scr Mat Matter Collected 442 | 251 191 Remotely . | . . Salvage Created 365 | . 365 Parts 23 | . 23 Haulers Intercepted 1 | . 1 Recyclers Shooed 2 | . 2 Parts Field Recycled . | . . Retrieved Matter . | . . Parts Self-Destructed . | . . Prevented . | . . Kills | -11 -10 ------- Run | Scr Mat Combat Hostiles Destroyed 7 | . 7 Guns 5 | . 5 AOE 2 | . 2 Classes Destroyed 6 | . 6 Worker 1 | . 1 Hauler 1 | . 1 Recycler 1 | . 1 Watcher 2 | . 2 Swarmer 2 | . 2 Grunt 5 | . 5 Best Kill Streak 3 | . 3 Combat Bots Only 2 | . 2 Max Kills in Single Turn 2 | . 2 Gunslinging . | . . Exploded 1 | . 1 Melee . | . . Uniques/NPCs Destroyed . | . . Combat | -11 -10 -------- Run | Scr Mat Damage Taken 812 | 45 767 Core 257 | . 257 Absorbed by Shields . | . . Core Remaining (%) 100 | 100 . Volleys Fired 39 | . 39 Largest 2 | . 2 Hottest 80 | . 80 Shots Fired 56 | . 56 Gun 43 | . 43 Cannon . | . . Launcher 13 | . 13 Special . | . . Kinetic . | . . Thermal . | . . Explosive 13 | . 13 Electromagnetic 43 | . 43 Robot Hit Streak 6 | . 6 Robot Miss Streak 3 | . 3 Penetration Max . | . . Secondary Targets 1 | . 1 Max Gunslinging Chain 1 | . 1 Shots Hit Robots 42 | . 42 Core Hits 21 | . 21 Critical Hits . | . . Critical Kills . | . . Critical Parts Destroyed . | . . Melee Attacks 13 | . 13 Impact 13 | . 13 Slashing . | . . Piercing . | . . Sneak Attacks . | . . Combat Hostiles . | . . Follow-up Attacks . | . . Damage Inflicted 1016 | . 1016 Guns 363 | . 363 Cannons . | . . Explosions 461 | . 461 Melee 192 | . 192 Ramming . | . . Kinetic . | . . Thermal . | . . Explosive 461 | . 461 Electromagnetic 363 | . 363 Impact 192 | . 192 Slashing . | . . Piercing . | . . Highest Corruption . | . . Average Corruption . | . . Corruption Purged . | . . Overload Shots . | . . Overflow Damage 52 | . 52 Projectiles . | . . Explosions 39 | . 39 Melee 13 | . 13 Knockbacks 5 | . 5 Impact 5 | . 5 Kinetic . | . . Secondary . | . . Self-Inflicted Damage 37 | . 37 Shots 1 | . 1 Rammed 2 | 2 . Targets Rammed 2 | 2 . Kicked . | . . Crushed . | . . Highest Temperature 372 | . 372 Average Temperature 155 | . 155 Received Heat Transfer 357 | 24 333 Effects 1 | . 1 Damage (minor) 1 | . 1 Siege Activations . | . . Robots Corrupted . | . . Combat Hostiles . | . . Parts Fried 2 | . 2 Impact Corruptions 2 | . 2 Robots Melted . | . . Combat Hostiles . | . . Parts Melted . | . . Heat Transferred . | . . Parts Sabotaged . | . . Parts Stolen . | . . Parts Stripped . | . . Power Chain Reactions . | . . Missiles Intercepted . | . . Alert | -11 -10 ------- Run | Scr Mat Peak Influence 136 | . 136 Initial . | . . Average 59 | . 64 Maximum Alert Level . | . . Low Security (%) 100 | 100 100 Level 1 . | . . Level 2 . | . . Level 3 . | . . Level 4 . | . . Level 5 . | . . High Security . | . . Max Security . | . . Squads Dispatched 1 | . 1 Investigation 1 | . 1 Extermination . | . . Reinforcement . | . . Assault . | . . Garrison . | . . Intercept . | . . Construction Impeded . | . . Haulers Reinforced . | . . Stealth | -11 -10 --------- Run | Scr Mat Distress Signals 2 | . 2 Communications Jammed . | . . Distress Signals . | . . Times Spotted 18 | 1 17 Peak Tracking Total 4 | 1 4 Tactical Retreats 3 | . 3 Traps | -11 -10 ------- Run | Scr Mat Traps Triggered 1 | . 1 Indirectly . | . . Trap Hack Attempts . | . . Triggered . | . . Disarmed . | . . Reprogrammed . | . . Reused . | . . Traps Extracted . | . . Installed . | . . Triggered 1 | . 1 Machines | -11 -10 ---------- Run | Scr Mat Machines Disabled 2 | . 2 Max in Single Turn 1 | . 1 Machines Sabotaged . | . . Garrisons Compromised . | . . Overloaded Fab Kills . | . . Fab Network Shutdowns . | . . Hacking | -11 -10 --------- Run | Scr Mat Machines Accessed 6 | . 6 Terminals 4 | . 4 Fabricators . | . . Repair Stations . | . . Recycling Units 2 | . 2 Scanalyzers . | . . Garrison Access . | . . Total Hacks 10 | . 10 Successful 6 | . 6 Failed 4 | . 4 Catastrophic 2 | . 2 Database Lockouts . | . . Manual . | . . Terminals 7 | . 7 Fabricators . | . . Repair Stations . | . . Recycling Units 3 | . 3 Scanalyzers . | . . Garrison Access . | . . Terminal Hacks 4 | . 4 Record 1 | . 1 Prototype ID Bank 1 | . 1 Alert Level 1 | . 1 Transport Status 1 | . 1 Fabricator Hacks . | . . Repair Station Hacks . | . . Recycling Unit Hacks 2 | . 2 Report Inventory 1 | . 1 Retrieve Matter 1 | . 1 Scanalyzer . | . . Garrison Access Hacks . | . . Unauthorized Hacks . | . . Terminals . | . . Fabricators . | . . Repair Stations . | . . Recycling Units . | . . Scanalyzers . | . . Garrison Access . | . . Data Cores Recovered . | . . Used . | . . Hacking Detections 5 | . 5 Full Trace Events 1 | . 1 Feedback Events . | . . Feedback Blocked . | . . Robot Schematics Acquired . | . . Robots Built . | . . Matter . | . . Time . | . . Total Robot Build Rating . | . . Part Schematics Acquired . | . . Parts Built . | . . Matter . | . . Time . | . . Total Part Build Rating . | . . Parts Repaired . | . . Time . | . . Parts Recycled . | . . Recycled Matter . | . . Retrieved Matter . | . . Retrieved Components . | . . Parts Scanalyzed . | . . Part Schematics Acquired . | . . Parts Damaged . | . . Bothacking | -11 -10 ------------ Run | Scr Mat Used RIF Installer . | . . Robots Hacked . | . . Non-combat . | . . Combat . | . . Robot Hacks Applied . | . . Relay Couplers Released . | . . Robots Rewired . | . . Allies Hacked . | . . Hacks Repelled . | . . Allies | -11 -10 -------- Run | Scr Mat Total Allies . | . . Largest Group . | . . Highest-Rated Group . | . . Highest-Rated Ally . | . . Total Orders . | . . Ally Attacks . | . . Total Damage . | . . Kills . | . . Allies Corrupted . | . . Allies Melted . | . . Intel | -11 -10 ------- Run | Scr Mat Robot Analysis Total . | . . Derelict Logs Recovered . | . . Drone Launches . | . . Drone Recoveries . | . . Exploration | -11 -10 ------------- Run | Scr Mat Turns Passed 705 | 55 650 Spaces Moved 446 | 58 388 Core 18 | 18 . Treads . | . . Legs 259 | . 259 Wheels 169 | 40 129 Hover . | . . Flight . | . . Fastest Speed 50 | 50 80 Average Speed 117 | 70 124 Slowest Speed 180 | 80 180 Overloaded Moves . | . . Propulsion Burnouts . | . . Robots Hopped . | . . Cave-ins Triggered . | . . Exploration Rate (%) 34 | 8 60 Regions Visited 1 Branch Regions . Pre-discovered Areas . | . . Known Exits Taken . | . . Unknown Exits Taken 1 | 1 . Scrap Searched . | . . Spaces Dug . | . . Terrain Destroyed 72 | . 72 Melee . | . . Projectile . | . . AOE 72 | . 72 Terrain Rammed . | . . Walls Destroyed . | . . Machines Disabled . | . . Actions | -11 -10 --------- Run | Scr Mat Total 549 | 71 478 Wait 3 | . 3 Move 446 | 58 388 Hop . | . . Pick Up 22 | 6 16 Fast Attach 4 | . 4 Attach 11 | 5 6 Detach 2 | . 2 Swap 4 | 1 3 Drop 4 | . 4 Fire 39 | . 39 Melee 13 | . 13 Ram 1 | 1 . Kick . | . . Crush . | . . Escape Stasis . | . . Rewire . | . . Trap . | . . Miscellaneous . | . . Route ------- -11/Scrapyard -10/Materials History --------- Turn | Location | Event 2 | -11/Scrapyard | Met Revision 17 47 | -11/Scrapyard | Discovered new exit (range 8) 56 | -11/Scrapyard | Entered Materials 193 | -10/Materials | Core integrity fell below 50% 298 | -10/Materials | Lost 3 parts (1p2w) 634 | -10/Materials | Build established: Mutant 647 | -10/Materials | Core integrity fell below 20% 706 | -10/Materials | Destroyed by S-10 Pest with Light Assault Rifle Last Messages --------------- 00618_ The unstable cave ceiling collapses. 00623_ G-34 Mercenary knocked back. 00627_ Destroyed Heat Sink. 00627_ G-34 Mercenary system corrupted by crushing effect. 00627_ G-34 Mercenary knocked back. 00632_ G-34 Mercenary misfires. 00638_ R-06 Scavenger collects Aluminum Leg. 00639_ Aluminum Leg destroyed. 00649_ U-05 Engineer lays Concrete. 00651_ U-05 Engineer builds a Door. 00653_ Dropped Grenade Launcher. 00654_ Dropped EM Pulse Gun. 00656_ Acquired EM Pulse Gun. 00658_ Destroyed Sml. Laser. 00659_ U-05 Engineer builds a Wall. 00676_ ALERT: Alarm triggered, dispatching investigation squad. 00692_ S-10 Pest destroyed. 00694_ Aluminum Leg destroyed. 00697_ Lgt. Nuclear Core destroyed. 00698_ S-10 Pest destroyed. Map ----- +----------------------------------------------------+ | ???# #???# """" """"?? #?????????????????? | | ???# ## #???# ?????????????????????? | | ???# ######???# ?????????????????????? | | ???# #????????# ! ????????????????????? | | ???# #????????# ????????????????????? | | ???# #????????# ##########????????????????????? | | ???# #????????# #?????????????????????????????? | | ???# #????????# #?????????????????????????????? | | ???# #????????# #?????????????????????????????? | | ???# #???????? #????????????????????????????? | | ???# #????????? ????????????????????????????? | | ???# #??????????| ????????????????????????????? | | ???# #?????????? ????????????????????????????? | | ???# #?????????? #????????????????????????????? | | ???# #??????????# ############?????????????????? | | ???# #??????????# ## #?????????????????? | | ???# #??????????# ## #?? ????????????? | | ???# #??????????# ## """ #?? ???????????? | | ???# #??????????# ## """"" #?? ???????????? | | ???# #??????????# ## """"" #?? ???????????? | | ???#+############ ## """"" #?? #???????????? | | ???# ## ## """ #?? #???????????? | | ???# """" """" ## ## #?? #???????????? | | ???# """" """" # ####+## ###?# #???????????? | | ???# """" """" + | s ##??# #???????????? | | ???# # @*%=###?# #???????????? | | ???# ""T"" # ### ###+# ### #???????????? | | ???# """"" ## ##?# ## # #???????????? | | ???############## #??# ## # #???????????? | | ??????########?# ##?# ## # #???????????? | | ??????# #?# ###+### # #???????????? | | ??????# #?# # # #???????????? | | ??????# || "#?# """ # / #???????????? | | ??????# | T### "Y" # # #???????????? | | ??????# | "## # #####???????????? | | ??????# ## # #???????????????? | | ??????#####+#### # #???????????????? | | ????????# ###### #???????????????? | | ????????# #????# ] #???????????????? | | ????????####### #????#######???????????????? | | ??????????????## ####??????????????????????????? | | ???????????????####?????????????????????????????? | | ????????????????????????????????????????????????? | | ????????????????????????????????????????????????? | | | | | | | | | | | | | +----------------------------------------------------+ Best States ------------- Heat Dissipation 39 Energy Generation 14 Energy Capacity 160 Matter Stores 300 Matter Capacity 300 Sight Range 16 Terrain Scan Density 10 Weapon Shielding 33 Evasion (%) 50 Salvage Targeting 1 Item Schematics ----------------- None Robot Schematics ------------------ None Fabricated ------------ Nothing Alien Tech Used ----------------- None Achievements -------------- Loot Pinata Challenges ------------ None Game ------ Seed AutogunAbsorptionBeamcaster Manual? 0 Play Time 00:40:41 Cumulative 2.2 hours Start 2020.09.20 @ 19:30:38 End 2020.09.20 @ 20:10:31 Sessions 1 Manual Loads 0 Difficulty Rogue Special Mode None Game No. 3 Rogue 3 Adventurer 0 Explorer 0 Win Type - Total 0 Types 0/0/0/0/0/0/0/0/0 Lore% 0 Gallery% 3 Achievement% 0 Wizard Run 0 Options --------- ASCII 0 Keyboard 0 Movement Mouse Keybinds 0 Fullscreen 1 Font 24/Smallcaps Map View 76x50 Tactical HUD 1 Map Filters NONE Filters NONE Steam 1 RUN: e24bd41e-3c50-4e77-aecc-dfb34ebdea1b